fUST/lending_fUST_20250822
["ID","MTS","AMOUNT","RATE_DAILY","PERIOD"]
[380507249,1755796275408,-1517.06,0.00022363,3]
[380507250,1755796275418,-1101.04,0.00022363,3]
[380507251,1755796275427,-480.0,0.00022363,3]
[380507252,1755796275437,-480.0,0.00022363,3]
[380507253,1755796275452,-4775.52,0.00022363,3]
[380507254,1755796275463,-6987.43,0.00022363,3]
[380507255,1755796275472,-3878.59,0.00022363,3]
[380507256,1755796275481,-1093.09,0.00022363,3]
[380507257,1755796275490,-2831.65,0.00022363,3]
[380507258,1755796275499,-899.66,0.00022363,3]
[380507259,1755796275509,-3918.0,0.00022363,3]
[380507260,1755796275519,-1555.41,0.00022363,3]
[380507261,1755796275528,-480.0,0.00022363,3]
[380507262,1755796275538,-596.22,0.00022363,3]
[380507263,1755796275547,-708.6,0.00022363,3]
[380507264,1755796275556,-1773.59,0.00022363,3]
[380507265,1755796275566,-1000.0,0.00022364,2]
[380507266,1755796275575,-2500.0,0.00022364,2]
[380507267,1755796275585,-2500.0,0.00022364,2]
[380507268,1755796275594,-2500.0,0.00022364,2]
[380507269,1755796275603,-704.13,0.00022365,3]
[380507270,1755796275613,-845.88,0.00022365,3]
[380507271,1755796275622,-480.0,0.00022365,3]
[380507272,1755796275631,-476.84909261,0.00022365,3]
[380507273,1755796275640,-480.0,0.00022365,3]
[380507274,1755796275649,-480.0,0.00022365,3]
[380507275,1755796275659,-480.0,0.00022365,3]
[380507276,1755796275669,-480.0,0.00022365,3]
[380507277,1755796275679,-1251.4,0.00022365,3]
[380507278,1755796275688,-1860.53,0.00022365,3]
[380507279,1755796275698,-480.0,0.00022365,3]
[380507280,1755796275709,-1217.86,0.00022365,3]
[380507281,1755796275719,-584.1,0.00022365,3]
[380507282,1755796275728,-566.7,0.00022365,3]
[380507283,1755796275738,-480.0,0.00022365,3]
[380507284,1755796275747,-480.0,0.00022365,3]
[380507285,1755796275756,-480.0,0.00022365,3]
[380507286,1755796275766,-480.0,0.00022365,3]
[380507287,1755796275776,-1339.59,0.00022365,3]
[380507288,1755796275785,-764.64,0.00022365,3]
[380507289,1755796275795,-1403.75,0.00022365,3]
[380507290,1755796275805,-493.09,0.00022365,3]
[380507291,1755796275814,-1591.86,0.00022365,3]
[380507292,1755796275824,-1264.66,0.00022365,3]
[380507293,1755796275833,-480.0,0.00022365,3]
[380507294,1755796275842,-480.0,0.00022365,3]
[380507295,1755796275851,-638.49,0.00022365,3]
[380507296,1755796275860,-480.0,0.00022365,3]
[380507297,1755796275869,-712.51,0.00022365,3]
[380507298,1755796275878,-480.0,0.00022365,3]
[380507299,1755796275887,-898.89,0.00022365,3]
[380507300,1755796275896,-1704.85,0.00022365,3]
[380507301,1755796275905,-578.35,0.00022365,3]
[380507302,1755796275914,-1348.45,0.00022365,3]
[380507303,1755796275923,-592.99509045,0.00022365,3]
[380507304,1755796275933,-1704.87,0.00022365,3]
[380507305,1755796275941,-434.88016791,0.00022365,3]
[380507306,1755796276179,-1006.22,0.00019741,2]
[380507307,1755796276188,-1006.22,0.00019741,2]
[380507308,1755796276199,-1006.22,0.00019749,2]
[380507309,1755796276209,-1006.22,0.00019749,2]
[380507310,1755796276219,-1006.22,0.0001975,2]
[380507311,1755796276229,-1006.22,0.00019753,2]
[380507312,1755796276239,-1006.22,0.00019772,2]
[380507313,1755796276248,-343.0,0.00019882,2]
[380507314,1755796276258,-500.0,0.00019898,2]
[380507315,1755796276269,-1006.22,0.00019999,2]
[380507316,1755796276279,-456.115824,0.00020447,2]
[380507317,1755796276289,-456.115824,0.000207,2]
[380507318,1755796276299,-456.115824,0.000207,2]
[380507319,1755796276310,-456.115824,0.00021008,2]
[380507320,1755796276319,-456.115824,0.00021008,2]
[380507321,1755796276329,-456.115824,0.00021555,2]
[380507322,1755796276338,-456.11582,0.00021555,2]
[380507323,1755796276348,-480.0,0.00021814,2]
[380507324,1755796276357,-500.0,0.00021943,2]
[380507325,1755796276366,-338.70409309,0.00022088,3]
[380507326,1755796276379,-480.0,0.00022091,3]
[380507327,1755796276388,-586.48983209,0.00022365,3]
[380507328,1755796276397,-2738.27,0.00022365,3]
[380507329,1755796276407,-764.6,0.00022365,3]
[380507330,1755796276415,-1669.08,0.00022365,3]
[380507331,1755796276425,-3186.28,0.00022365,3]
[380507332,1755796276435,-2363.46,0.00022365,3]
[380507333,1755796276445,-862.84,0.00022365,3]
[380507334,1755796276456,-1526.94,0.00022365,3]
[380507335,1755796276465,-480.0,0.00022365,3]
[380507336,1755796276474,-517.72,0.00022365,3]
[380507337,1755796276484,-13490.57,0.00022365,3]
[380507338,1755796276493,-749.78,0.00022365,3]
[380507339,1755796276502,-514.0,0.00022365,3]
[380507340,1755796276511,-480.0,0.00022365,3]
[380507341,1755796276520,-3003.54,0.00022365,3]
[380507342,1755796276529,-725.46,0.00022365,3]
[380507343,1755796276539,-12836.72,0.00022365,3]
[380507344,1755796276549,-480.0,0.00022365,3]
[380507345,1755796276558,-1243.1,0.00022365,3]
[380507346,1755796276567,-1609.93,0.00022365,3]
[380507347,1755796276577,-480.0,0.00022365,3]
[380507348,1755796276587,-480.0,0.00022365,3]
[380507349,1755796276596,-8565.46,0.00022365,3]
[380507350,1755796276606,-480.0,0.00022365,3]
[380507351,1755796276615,-513.5,0.00022366,3]
[380507352,1755796276625,-2071.92,0.00022366,3]
[380507353,1755796276634,-1723.01,0.00022366,3]
[380507354,1755796276644,-3623.53,0.00022366,3]
[380507355,1755796276654,-1500.0,0.00022368,2]
[380507356,1755796276663,-513.47,0.00022377,3]
[380507357,1755796276672,-480.0,0.00022377,3]
[380507358,1755796276681,-481.12,0.00022377,3]
[380507359,1755796276690,-1100.62,0.00022377,3]
[380507360,1755796276699,-676.36,0.00022377,3]
[380507361,1755796276709,-544.49,0.00022377,3]
[380507362,1755796276718,-773.22,0.00022377,3]
[380507363,1755796276727,-480.0,0.00022377,3]
[380507364,1755796276736,-1666.89,0.00022377,3]
[380507365,1755796276745,-575.56793242,0.00022377,3]
[380507366,1755796276755,-480.0,0.00022377,3]
[380507367,1755796276763,-574.32,0.00022377,3]
[380507368,1755796276772,-686.37,0.00022377,3]
[380507369,1755796276782,-480.0,0.00022377,3]
[380507370,1755796276791,-783.65,0.00022377,3]
[380507371,1755796276800,-991.06,0.00022377,3]
[380507372,1755796276809,-480.0,0.00022377,3]
[380507373,1755796276819,-804.94,0.00022377,3]
[380507374,1755796276828,-446.73864748,0.00022377,3]
[380507375,1755796276837,-4916.94,0.00022377,3]
[380507376,1755796276846,-565.37449479,0.00022377,3]
[380507377,1755796276855,-1776.85,0.00022377,3]
[380507378,1755796276864,-918.37,0.00022377,3]
[380507379,1755796276873,-1076.14,0.00022377,3]
[380507380,1755796276882,-525.31,0.00022377,3]
[380507381,1755796276891,-2049.35,0.00022377,3]
[380507382,1755796276899,-480.0,0.00022377,3]
[380507383,1755796276909,-1215.14,0.00022377,3]
[380507384,1755796276917,-793.31,0.00022377,3]
[380507385,1755796276926,-480.0,0.00022378,3]
[380507386,1755796276936,-1285.05,0.00022378,3]
[380507387,1755796276945,-884.72,0.00022378,3]
[380507388,1755796276955,-978.38,0.00022378,3]
[380507389,1755796276964,-480.0,0.00022378,3]
[380507390,1755796276973,-480.0,0.00022378,3]
[380507391,1755796276983,-801.62,0.00022378,3]
[380507392,1755796276992,-1223.71,0.00022378,3]
[380507393,1755796277001,-677.58,0.00022378,3]
[380507394,1755796277010,-480.0,0.00022378,3]
[380507395,1755796277019,-480.0,0.00022378,3]
[380507396,1755796277030,-480.0,0.00022378,3]
[380507397,1755796277039,-566.96,0.00022378,3]
[380507398,1755796277150,-480.0,0.00022378,3]
[380507399,1755796277169,-480.0,0.00022378,3]
[380507400,1755796277178,-1649.16,0.00022378,3]
[380507401,1755796277187,-715.91,0.00022378,3]
[380507402,1755796277197,-691.28,0.00022378,3]
[380507403,1755796277207,-480.0,0.00022378,3]
[380507404,1755796277216,-1001.2,0.00022378,3]
[380507405,1755796277226,-720.08,0.00022378,3]
[380507406,1755796277235,-823.48,0.00022378,3]
[380507407,1755796277244,-480.0,0.00022378,3]
[380507408,1755796277253,-612.13,0.00022378,3]
[380507409,1755796277262,-502.96,0.00022378,3]
[380507410,1755796277272,-551.16,0.00022378,3]
[380507411,1755796277281,-529.97,0.00022378,3]
[380507412,1755796277290,-750.1,0.00022378,3]
[380507413,1755796277299,-3389.44,0.00022378,3]
[380507414,1755796277309,-480.0,0.00022378,3]
[380507415,1755796277318,-587.17,0.00022378,3]
[380507416,1755796277327,-425.74621667,0.00022378,3]
[380507417,1755796277336,-480.0,0.00022378,3]
[380507418,1755796277345,-480.0,0.00022378,3]
[380507419,1755796277354,-630.38,0.00022378,3]
[380507420,1755796277364,-480.0,0.00022378,3]
[380507421,1755796277377,-480.0,0.00022378,3]
[380507422,1755796277386,-754.78,0.00022378,3]
[380507423,1755796277395,-480.0,0.00022378,3]
[380507424,1755796277404,-880.68,0.00022378,3]
[380507425,1755796277415,-1106.61,0.00022378,3]
[380507426,1755796277425,-1175.7,0.00022378,3]
[380507427,1755796277435,-250.0,0.000224,10]
[380507428,1755796277444,-1000.0,0.000224,2]
[380507429,1755796277454,-1000.0,0.000224,2]
[380507430,1755796277464,-1000.0,0.000224,2]
[380507431,1755796277473,-160.0,0.0002241,3]
[380507432,1755796277482,-176.547924,0.00022452,10]
[380507433,1755796277491,-150.7924297,0.00022466,2]
[380507434,1755796277500,-500.0,0.00022473,2]
[380507435,1755796277510,-480.0,0.00022479,3]
[380507436,1755796277519,-480.0,0.00022479,3]
[380507437,1755796277528,-494.99,0.00022479,3]
[380507438,1755796277538,-480.0,0.00022479,3]
[380507439,1755796277548,-301.7099714,0.00022479,3]
[380507440,1755796277558,-480.0,0.00022479,3]
[380507441,1755796277567,-480.0,0.00022479,3]
[380507442,1755796277576,-480.0,0.00022479,3]
[380507443,1755796277585,-480.0,0.00022479,3]
[380507444,1755796277595,-480.0,0.00022479,3]
[380507445,1755796277604,-555.05,0.00022479,3]
[380507446,1755796277613,-662.68,0.00022479,3]
[380507447,1755796277622,-480.0,0.00022479,3]
[380507448,1755796277631,-504.0,0.00022479,3]
[380507449,1755796277640,-480.0,0.00022479,3]
[380507450,1755796277649,-579.16,0.00022479,3]
[380507451,1755796277658,-878.34,0.00022479,3]
[380507452,1755796277668,-625.09,0.00022479,3]
[380507453,1755796277677,-480.0,0.00022479,3]
[380507454,1755796277686,-480.0,0.00022479,3]
[380507455,1755796277698,-480.0,0.00022479,3]
[380507456,1755796277709,-480.0,0.00022479,3]
[380507457,1755796277719,-662.68,0.00022479,3]
[380507458,1755796277728,-486.45,0.00022479,3]
[380507459,1755796277737,-741.24,0.00022479,3]
[380507460,1755796277747,-480.0,0.00022479,3]
[380507461,1755796277757,-490.79,0.00022479,3]
[380507462,1755796277766,-839.98,0.00022479,3]
[380507463,1755796277775,-480.0,0.00022479,3]
[380507464,1755796277784,-617.8,0.00022479,3]
[380507465,1755796277793,-756.41,0.00022479,3]
[380507466,1755796277802,-480.0,0.00022479,3]
[380507467,1755796277812,-988.19,0.00022479,3]
[380507468,1755796277821,-719.39,0.00022479,2]
[380507469,1755796277831,-896.1,0.00022479,3]
[380507470,1755796277840,-735.04,0.00022479,3]
[380507471,1755796277850,-526.43,0.00022479,3]
[380507472,1755796277859,-751.72,0.00022479,3]
[380507473,1755796277868,-1889.29,0.00022479,3]
[380507474,1755796277877,-2200.0,0.00022486,2]
[380507475,1755796277887,-168.0,0.00022487,2]
[380507476,1755796277896,-151.0,0.00022491,2]
[380507477,1755796277905,-151.0,0.00022491,2]
[380507478,1755796277914,-559.0,0.00022491,2]
[380507479,1755796277923,-604.0,0.00022491,2]
[380507480,1755796277931,-480.0,0.00022491,3]
[380507481,1755796277940,-480.0,0.00022491,3]
[380507482,1755796277949,-480.0,0.00022491,3]
[380507483,1755796277959,-480.0,0.00022491,3]
[380507484,1755796277968,-168.0,0.00022491,2]
[380507485,1755796277977,-179.0,0.00022497,2]
[380507486,1755796277987,-151.0,0.00022534,2]
[380507487,1755796277996,-176.547924,0.00022606,7]
[380507488,1755796278005,-179.0,0.00022615,2]
[380507489,1755796278015,-176.547924,0.00022619,2]
[380507490,1755796278024,-553.68,0.00022636,3]
[380507491,1755796278034,-952.91,0.00022636,3]
[380507492,1755796278043,-1069.9,0.00022636,3]
[380507493,1755796278053,-841.6,0.00022636,3]
[380507494,1755796278062,-1098.95,0.00022636,3]
[380507495,1755796278072,-5724.64,0.00022637,3]
[380507496,1755796278082,-475.40244621,0.00022637,3]
[380507497,1755796278091,-3111.45,0.00022637,3]
[380507498,1755796278100,-638.16,0.00022637,3]
[380507499,1755796278110,-1517.06,0.00022637,3]
[380507500,1755796278119,-1101.04,0.00022637,3]
[380507501,1755796278128,-480.0,0.00022637,3]
[380507502,1755796278138,-480.0,0.00022637,3]
[380507503,1755796278147,-4775.52,0.00022637,3]
[380507504,1755796278157,-6987.43,0.00022637,3]
[380507505,1755796278167,-3878.59,0.00022637,3]
[380507506,1755796278176,-1093.09,0.00022637,3]
[380507507,1755796278186,-2831.65,0.00022637,3]
[380507508,1755796278195,-899.66,0.00022637,3]
[380507509,1755796278205,-3918.0,0.00022637,3]
[380507510,1755796278215,-1555.41,0.00022637,3]
[380507511,1755796278225,-197.20755522,0.00022637,3]
[380507512,1755796278235,-596.22,0.00022637,3]
[380507513,1755796278244,-708.6,0.00022637,3]
[380507514,1755796278254,-1773.59,0.00022637,3]
[380507515,1755796278263,-704.13,0.00022639,3]
[380507516,1755796278272,-845.88,0.00022639,3]
[380507517,1755796278282,-480.0,0.00022639,3]
[380507518,1755796278291,-480.0,0.00022639,3]
[380507519,1755796278301,-480.0,0.00022639,3]
[380507520,1755796278310,-480.0,0.00022639,3]
[380507521,1755796278320,-480.0,0.00022639,3]
[380507522,1755796278331,-1251.4,0.00022639,3]
[380507523,1755796278341,-1860.53,0.00022639,3]
[380507524,1755796278350,-480.0,0.00022639,3]
[380507525,1755796278359,-1217.86,0.00022639,3]
[380507526,1755796278369,-584.1,0.00022639,3]
[380507527,1755796278381,-566.7,0.00022639,3]
[380507528,1755796278390,-480.0,0.00022639,3]
[380507529,1755796278399,-480.0,0.00022639,3]
[380507530,1755796278408,-480.0,0.00022639,3]
[380507531,1755796278419,-480.0,0.00022639,3]
[380507532,1755796278428,-764.64,0.00022639,3]
[380507533,1755796278437,-201.98762183,0.00022639,3]
[380507534,1755796278550,-101.98544859,0.00022639,3]
[380507535,1755796278627,199.0,0.00019527,10]
[380507536,1755796279264,-480.0,0.00019623,2]
[380507537,1755796279273,-480.0,0.00019626,2]
[380507538,1755796279283,-480.0,0.00019638,2]
[380507539,1755796279293,-480.0,0.00019739,2]
[380507540,1755796279302,-5330.4533455,0.000199,2]
[380507541,1755796279312,-480.0,0.000199,2]
[380507542,1755796279322,-1006.22,0.00020012,2]
[380507543,1755796279331,-1006.22,0.00020013,2]
[380507544,1755796279340,-480.0,0.00020013,2]
[380507545,1755796279350,-1006.22,0.00020014,2]
[380507546,1755796279359,-1006.22,0.00020014,2]
[380507547,1755796279369,-1006.22,0.00020014,2]
[380507548,1755796279381,-1006.22,0.00020014,2]
[380507549,1755796279391,-1006.23346152,0.00020014,2]
[380507550,1755796279401,-366.39057852,0.00020108,2]
[380507551,1755796279411,-480.0,0.00020174,2]
[380507552,1755796279421,-480.0,0.00020287,2]
[380507553,1755796279431,-480.0,0.00020448,2]
[380507554,1755796279440,-480.0,0.00020561,2]
[380507555,1755796279450,-433.59,0.00020722,2]
[380507556,1755796279470,-480.0,0.00020835,2]
[380507557,1755796279482,-5330.45334521,0.00020835,2]
[380507558,1755796279491,-5330.45334521,0.00021771,2]
[380507559,1755796279500,-500.0,0.00021917,2]
[380507560,1755796279509,-199.29105189,0.00022217,2]
[380507561,1755796279518,-493.09,0.00022639,3]
[380507562,1755796279528,-1591.86,0.00022639,3]
[380507563,1755796279538,-1264.66,0.00022639,3]
[380507564,1755796279548,-480.0,0.00022639,3]
[380507565,1755796279557,-480.0,0.00022639,3]
[380507566,1755796279566,-638.49,0.00022639,3]
[380507567,1755796279575,-480.0,0.00022639,3]
[380507568,1755796279585,-712.51,0.00022639,3]
[380507569,1755796279594,-480.0,0.00022639,3]
[380507570,1755796279604,-898.89,0.00022639,3]
[380507571,1755796279613,-1704.85,0.00022639,3]
[380507572,1755796279622,-578.35,0.00022639,3]
[380507573,1755796279634,-1348.45,0.00022639,3]
[380507574,1755796279643,-1704.87,0.00022639,3]
[380507575,1755796279652,-1021.37,0.00022639,3]
[380507576,1755796279663,-2738.27,0.00022639,3]
[380507577,1755796279672,-764.6,0.00022639,3]
[380507578,1755796279683,-1669.08,0.00022639,3]
[380507579,1755796279693,-3186.28,0.00022639,3]
[380507580,1755796279703,-2363.46,0.00022639,3]
[380507581,1755796279713,-1526.94,0.00022639,3]
[380507582,1755796279723,-480.0,0.00022639,3]
[380507583,1755796279734,-517.72,0.00022639,3]
[380507584,1755796279743,-13490.57,0.00022639,3]
[380507585,1755796279752,-749.78,0.00022639,3]
[380507586,1755796279763,-514.0,0.00022639,3]
[380507587,1755796279773,-480.0,0.00022639,3]
[380507588,1755796279782,-3003.54,0.00022639,3]
[380507589,1755796279792,-725.46,0.00022639,3]
[380507590,1755796279801,-12836.72,0.00022639,3]
[380507591,1755796279811,-480.0,0.00022639,3]
[380507592,1755796279821,-1243.1,0.00022639,3]
[380507593,1755796279830,-1609.93,0.00022639,3]
[380507594,1755796279839,-480.0,0.00022639,3]
[380507595,1755796279848,-480.0,0.00022639,3]
[380507596,1755796279858,-8565.46,0.00022639,3]
[380507597,1755796279867,-480.0,0.00022639,3]
[380507598,1755796279877,-513.5,0.0002264,3]
[380507599,1755796279886,-2071.92,0.0002264,3]
[380507600,1755796279895,-1723.01,0.0002264,3]
[380507601,1755796279905,-3623.53,0.0002264,3]
[380507602,1755796279914,-513.47,0.00022651,3]
[380507603,1755796279924,-480.0,0.00022651,3]
[380507604,1755796279933,-481.12,0.00022651,3]
[380507605,1755796279942,-1100.62,0.00022651,3]
[380507606,1755796279951,-676.36,0.00022651,3]
[380507607,1755796279961,-544.49,0.00022651,3]
[380507608,1755796279970,-773.22,0.00022651,3]
[380507609,1755796279980,-480.0,0.00022651,3]
[380507610,1755796279988,-1666.89,0.00022651,3]
[380507611,1755796279998,-480.0,0.00022651,3]
[380507612,1755796280007,-574.32,0.00022651,3]
[380507613,1755796280017,-686.37,0.00022651,3]
[380507614,1755796280026,-480.0,0.00022651,3]
[380507615,1755796280035,-783.65,0.00022651,3]
[380507616,1755796280044,-991.06,0.00022651,3]
[380507617,1755796280053,-480.0,0.00022651,3]
[380507618,1755796280062,-804.94,0.00022651,3]
[380507619,1755796280072,-4916.94,0.00022651,3]
[380507620,1755796280081,-1776.85,0.00022651,3]
[380507621,1755796280091,-918.37,0.00022651,3]
[380507622,1755796280100,-1076.14,0.00022651,3]
[380507623,1755796280109,-525.31,0.00022651,3]
[380507624,1755796280118,-2049.35,0.00022651,3]
[380507625,1755796280128,-563.16,0.00022651,3]
[380507626,1755796280137,-1215.14,0.00022651,3]
[380507627,1755796280147,-793.31,0.00022651,3]
[380507628,1755796280156,-480.0,0.00022652,3]
[380507629,1755796280166,-866.71391646,0.00022652,3]
[380507630,1755796280200,-418.33608354,0.00022652,3]
[380507631,1755796280211,-884.72,0.00022652,3]
[380507632,1755796280220,-978.38,0.00022652,3]
[380507633,1755796280229,-480.0,0.00022652,3]
[380507634,1755796280239,-480.0,0.00022652,3]
[380507635,1755796280248,-801.62,0.00022652,3]
[380507636,1755796280257,-1223.71,0.00022652,3]
[380507637,1755796280266,-677.58,0.00022652,3]
[380507638,1755796280275,-480.0,0.00022652,3]
[380507639,1755796280285,-480.0,0.00022652,3]
[380507640,1755796280294,-480.0,0.00022652,3]
[380507641,1755796280303,-566.96,0.00022652,3]
[380507642,1755796280312,-480.0,0.00022652,3]
[380507643,1755796280321,-480.0,0.00022652,3]
[380507644,1755796280331,-1649.16,0.00022652,3]
[380507645,1755796280341,-715.91,0.00022652,3]
[380507646,1755796280350,-691.28,0.00022652,3]
[380507647,1755796280360,-480.0,0.00022652,3]
[380507648,1755796280375,-1001.2,0.00022652,3]
[380507649,1755796280386,-720.08,0.00022652,3]
[380507650,1755796280395,-823.48,0.00022652,3]
[380507651,1755796280407,-480.0,0.00022652,3]
[380507652,1755796280417,-502.96,0.00022652,3]
[380507653,1755796280435,-551.16,0.00022652,3]
[380507654,1755796280447,-529.97,0.00022652,3]
[380507655,1755796280458,-750.1,0.00022652,3]
[380507656,1755796280467,-3389.44,0.00022652,3]
[380507657,1755796280476,-480.0,0.00022652,3]
[380507658,1755796280485,-587.17,0.00022652,3]
[380507659,1755796280494,-480.0,0.00022652,3]
[380507660,1755796280503,-480.0,0.00022652,3]
[380507661,1755796280513,-630.38,0.00022652,3]
[380507662,1755796280522,-546.92497878,0.00022652,3]
[380507663,1755796280531,-480.0,0.00022652,3]
[380507664,1755796280541,-754.78,0.00022652,3]
[380507665,1755796280550,-480.0,0.00022652,3]
[380507666,1755796280559,-880.68,0.00022652,3]
[380507667,1755796280569,-1106.61,0.00022652,3]
[380507668,1755796280579,-1175.7,0.00022652,3]
[380507669,1755796280588,-176.547924,0.000227,10]
[380507670,1755796280597,-151.0,0.00022706,7]
[380507671,1755796280606,-5330.45334521,0.00022706,2]
[380507672,1755796280615,-560.0,0.00022717,2]
[380507673,1755796280624,-480.0,0.00022753,3]
[380507674,1755796280633,-480.0,0.00022753,3]
[380507675,1755796280643,-494.99,0.00022753,3]
[380507676,1755796280652,-480.0,0.00022753,3]
[380507677,1755796280661,-480.0,0.00022753,3]
[380507678,1755796280670,-480.0,0.00022753,3]
[380507679,1755796280680,-480.0,0.00022753,3]
[380507680,1755796280689,-480.0,0.00022753,3]
[380507681,1755796280698,-555.05,0.00022753,3]
[380507682,1755796280708,-662.68,0.00022753,3]
[380507683,1755796280718,-480.0,0.00022753,3]
[380507684,1755796280727,-504.0,0.00022753,3]
[380507685,1755796280737,-480.0,0.00022753,3]
[380507686,1755796280747,-579.16,0.00022753,3]
[380507687,1755796280756,-878.34,0.00022753,3]
[380507688,1755796280766,-625.09,0.00022753,3]
[380507689,1755796280775,-480.0,0.00022753,3]
[380507690,1755796280784,-463.16294561,0.00022753,3]
[380507691,1755796280793,-480.0,0.00022753,3]
[380507692,1755796280802,-480.0,0.00022753,3]
[380507693,1755796280812,-662.68,0.00022753,3]
[380507694,1755796280821,-486.45,0.00022753,3]
[380507695,1755796280830,-741.24,0.00022753,3]
[380507696,1755796280839,-480.0,0.00022753,3]
[380507697,1755796280848,-490.79,0.00022753,3]
[380507698,1755796280857,-839.98,0.00022753,3]
[380507699,1755796280866,-480.0,0.00022753,3]
[380507700,1755796280876,-617.8,0.00022753,3]
[380507701,1755796280886,-756.41,0.00022753,3]
[380507702,1755796280895,-373.54936858,0.00022753,3]
[380507703,1755796280905,-280.43027717,0.00022753,3]
[380507704,1755796280918,-707.75972283,0.00022753,3]
[380507705,1755796280929,-719.39,0.00022753,2]
[380507706,1755796280939,-378.35027727,0.00022753,3]
[380507707,1755796280950,-517.74972273,0.00022753,3]
[380507708,1755796281066,-735.04,0.00022753,3]
[380507709,1755796281076,-526.43,0.00022753,3]
[380507710,1755796281086,-751.72,0.00022753,3]
[380507711,1755796281095,-1692.56027728,0.00022753,3]
[380507712,1755796282211,222.08483104,0.00019034,2]
[380507713,1755796282921,199.0,0.00019427,10]
[380507714,1755796284007,199.0,0.00019327,10]
[380507715,1755796284788,199.0,0.00019227,10]
[380507720,1755796351154,200.0,0.00026852,120]
[380507721,1755796356706,3208.20460159,0.00019524,2]
[380507722,1755796356728,10000.0,0.00019524,2]
[380507723,1755796356750,10000.0,0.00019524,2]
[380507724,1755796356772,10000.0,0.00019524,2]
[380507725,1755796356795,10000.0,0.00019524,2]
[380507726,1755796356817,10000.0,0.00019524,2]
[380507727,1755796356838,10000.0,0.00019524,2]
[380507728,1755796356860,10000.0,0.00019524,2]
[380507729,1755796356882,10000.0,0.00019524,2]
[380507730,1755796356904,10000.0,0.00019524,2]
[380507731,1755796356926,10000.0,0.00019524,2]
[380507732,1755796356947,10000.0,0.00019524,2]
[380507733,1755796357123,10000.0,0.00019524,2]
[380507734,1755796357146,10000.0,0.00019524,2]
[380507735,1755796357168,10000.0,0.00019524,2]
[380507736,1755796357190,10000.0,0.00019524,2]
[380507737,1755796357212,10000.0,0.00019524,2]
[380507738,1755796357234,10000.0,0.00019524,2]
[380507739,1755796357256,10000.0,0.00019524,2]
[380507740,1755796357279,10000.0,0.00019524,2]
[380507741,1755796357300,10000.0,0.00019524,2]
[380507742,1755796357321,10000.0,0.00019524,2]
[380507743,1755796357344,10000.0,0.00019524,2]
[380507744,1755796357366,10000.0,0.00019524,2]
[380507745,1755796357391,10000.0,0.00019524,2]
[380507746,1755796357413,10000.0,0.00019524,2]
[380507747,1755796357435,10000.0,0.00019524,2]
[380507748,1755796357456,10000.0,0.00019524,2]
[380507749,1755796357482,10000.0,0.00019524,2]
[380507750,1755796357503,10000.0,0.00019524,2]
[380507751,1755796357526,10000.0,0.00019524,2]
[380507752,1755796357548,10000.0,0.00019524,2]